bitfinex/quotes_BTCUSD_20230120
["timestamp","ask_amount","ask_price","bid_price","bid_amount"]
[1674203481685,4.92738903,20929.0,20928.0,0.02797405]
[1674203481881,4.92738903,20929.0,20927.0,9.6e-05]
[1674203481882,5.33008391,20929.0,20927.0,9.6e-05]
[1674203482137,3.72680679,20928.0,20927.0,9.6e-05]
[1674203482399,5.64289298,20928.0,20927.0,9.6e-05]
[1674203482983,5.64288612,20928.0,20927.0,9.6e-05]
[1674203483438,5.15872476,20928.0,20927.0,9.6e-05]
[1674203483700,5.86916424,20928.0,20927.0,9.6e-05]
[1674203484213,4.6213581,20928.0,20927.0,9.6e-05]
[1674203484463,5.1572171,20928.0,20927.0,9.6e-05]
[1674203485235,5.65260423,20928.0,20927.0,9.6e-05]
[1674203485529,5.87958253,20928.0,20927.0,9.6e-05]
[1674203485734,5.65229034,20928.0,20927.0,9.6e-05]
[1674203485997,5.93849034,20928.0,20927.0,9.6e-05]
[1674203486534,0.15,20927.0,20924.0,0.01859285]
[1674203486846,0.3784,20925.0,20924.0,0.01859285]
[1674203487072,1.78577638,20925.0,20924.0,0.01859285]
[1674203487331,3.33366738,20925.0,20924.0,0.01859285]
[1674203488079,3.01953469,20925.0,20924.0,0.01859285]
[1674203488337,3.3343552,20925.0,20924.0,0.01859285]
[1674203489121,3.42400699,20925.0,20924.0,0.01859285]
[1674203489923,2.79119469,20925.0,20924.0,0.01859285]
[1674203492097,2.79113469,20925.0,20924.0,0.01859285]
[1674203492879,2.5352915,20925.0,20924.0,0.01859285]
[1674203493143,2.2277495,20925.0,20924.0,0.01859285]
[1674203493591,2.4577495,20925.0,20924.0,0.01859285]
[1674203494398,2.4492495,20925.0,20924.0,0.01859285]
[1674203494698,1.97204781,20925.0,20924.0,0.14703285]
[1674203494929,1.97204781,20925.0,20924.0,0.01859285]
[1674203500864,1.963691,20925.0,20924.0,0.01859285]
[1674203501867,2.33176927,20925.0,20924.0,0.01859285]
[1674203502141,2.96810866,20925.0,20924.0,0.01859285]
[1674203502416,2.89628769,20925.0,20924.0,0.01859285]
[1674203502948,3.20969102,20925.0,20924.0,0.01859285]
[1674203503241,3.71426845,20925.0,20924.0,0.01859285]
[1674203503508,3.40086512,20925.0,20924.0,0.01859285]
[1674203504316,3.00938769,20925.0,20924.0,0.01859285]
[1674203506706,3.00938769,20925.0,20924.0,0.01851418]
[1674203508853,2.78228769,20925.0,20924.0,0.01851418]
[1674203511727,3.066121,20925.0,20924.0,0.01851418]
[1674203512009,3.37979845,20925.0,20924.0,0.01851418]
[1674203512236,3.066121,20925.0,20924.0,0.01851418]
[1674203512522,2.78228769,20925.0,20924.0,0.01851418]
[1674203513039,3.066121,20925.0,20924.0,0.01851418]
[1674203513501,3.180221,20925.0,20924.0,0.01851418]
[1674203515641,3.00992101,20925.0,20924.0,0.01851418]
[1674203516196,3.43822852,20925.0,20924.0,0.01851418]
[1674203516714,3.80871714,20925.0,20924.0,0.01851418]
[1674203516992,3.75208428,20925.0,20924.0,0.01851418]
[1674203517772,3.32377677,20925.0,20924.0,0.01851418]
[1674203518586,3.60747628,20925.0,20924.0,0.01851418]
[1674203518821,3.60744332,20925.0,20924.0,0.01851418]
[1674203519083,3.29375433,20925.0,20924.0,0.01851418]
[1674203519347,3.12345434,20925.0,20924.0,0.01851418]
[1674203519610,4.09000393,20925.0,20924.0,0.01851418]
[1674203519862,4.62521804,20925.0,20924.0,0.00314882]
[1674203520118,4.22529386,20925.0,20924.0,0.00314882]
[1674203522290,4.50964911,20925.0,20924.0,0.00314882]
[1674203523121,4.50966284,20925.0,20924.0,0.00314882]
[1674203523373,5.0367303,20925.0,20924.0,0.00314882]
[1674203524168,4.73716968,20925.0,20924.0,0.00314882]
[1674203524416,4.22529386,20925.0,20924.0,0.00314882]
[1674203525905,4.73703745,20925.0,20924.0,0.00314882]
[1674203526156,4.56673791,20925.0,20924.0,0.00314882]
[1674203526658,4.22529386,20925.0,20924.0,0.00314882]
[1674203527164,4.70789605,20925.0,20924.0,0.00314882]
[1674203527414,4.99218359,20925.0,20924.0,0.00314882]
[1674203528154,4.70789605,20925.0,20924.0,0.00314882]
[1674203528914,4.39424494,20925.0,20924.0,0.00314882]
[1674203529207,4.99285986,20925.0,20924.0,0.00314882]
[1674203530216,5.22025939,20925.0,20924.0,0.00314882]
[1674203530465,4.99285986,20925.0,20924.0,0.00314882]
[1674203531226,5.27905986,20925.0,20924.0,8.2e-07]
[1674203531484,4.51218313,20925.0,20924.0,8.2e-07]
[1674203531968,4.19784275,20925.0,20924.0,8.2e-07]
[1674203532223,4.51269659,20925.0,20924.0,8.2e-07]
[1674203532984,4.85414064,20925.0,20924.0,8.2e-07]
[1674203533768,4.51269659,20925.0,20924.0,8.2e-07]
[1674203535350,4.79690247,20925.0,20924.0,8.2e-07]
[1674203535573,4.51269659,20925.0,20924.0,8.2e-07]
[1674203535833,4.85414064,20925.0,20924.0,8.2e-07]
[1674203536093,4.99529878,20925.0,20924.0,8.2e-07]
[1674203536872,5.0451217,20925.0,20924.0,8.2e-07]
[1674203537949,5.38656575,20925.0,20924.0,8.2e-07]
[1674203538186,5.0451217,20925.0,20924.0,8.2e-07]
[1674203538442,5.38656575,20925.0,20924.0,8.2e-07]
[1674203538701,5.40030667,20925.0,20923.0,0.01849265]
[1674203538959,2.69633525,20924.0,20923.0,0.01849265]
[1674203539260,4.09584563,20924.0,20923.0,0.01849265]
[1674203539763,4.09584563,20924.0,20923.0,0.00345871]
[1674203540298,3.75466913,20924.0,20923.0,0.00345871]
[1674203540773,3.31099875,20924.0,20923.0,0.00345871]
[1674203541288,3.65217525,20924.0,20923.0,0.00345871]
[1674203542327,3.65223525,20924.0,20923.0,0.00345871]
[1674203542845,3.96705914,20924.0,20923.0,0.00345871]
[1674203543371,3.65223525,20924.0,20923.0,0.00345871]
[1674203543628,4.10846052,20924.0,20923.0,0.00345871]
[1674203544505,4.73583702,20924.0,20923.0,0.00345871]
[1674203544962,4.73583702,20924.0,20922.0,0.00502759]
[1674203545258,2.48099301,20923.0,20922.0,0.00502759]
[1674203545529,3.74537701,20923.0,20922.0,0.00502759]
[1674203545762,3.88670675,20923.0,20922.0,0.00502759]
[1674203546016,4.17290675,20923.0,20922.0,0.00502759]
[1674203546275,4.28710675,20923.0,20922.0,0.00502759]
[1674203546795,4.28710675,20923.0,20921.0,0.01855183]
[1674203547063,3.3466362,20922.0,20921.0,8.3e-07]
[1674203547323,5.39924844,20922.0,20921.0,8.3e-07]
[1674203547580,5.39924844,20922.0,20919.0,0.01873588]
[1674203547832,0.85344024,20920.0,20919.0,0.01873588]
[1674203548095,4.13004078,20920.0,20919.0,0.01873588]
[1674203548651,3.90215232,20920.0,20919.0,0.01873588]
[1674203548655,3.73162891,20920.0,20919.0,0.01873588]
[1674203548914,4.85699939,20920.0,20919.0,0.01873588]
[1674203549169,4.62964817,20920.0,20919.0,0.01873588]
[1674203550287,4.62970817,20920.0,20919.0,0.01873588]
[1674203551621,4.26010213,20920.0,20919.0,0.01873588]
[1674203552446,4.87300306,20920.0,20919.0,0.01873588]
[1674203552984,4.26010213,20920.0,20919.0,0.01873588]
[1674203553255,5.35573377,20920.0,20919.0,0.01873588]
[1674203553537,5.12840631,20920.0,20919.0,0.01873588]
[1674203553820,3.73160544,20920.0,20919.0,0.01873588]
[1674203554078,3.90205749,20920.0,20919.0,0.01873588]
[1674203554596,3.73160544,20920.0,20919.0,0.01873588]
[1674203554850,4.65285408,20920.0,20919.0,0.01873588]
[1674203555702,4.26102352,20920.0,20919.0,0.01873588]
[1674203555959,3.78832794,20920.0,20919.0,0.01873588]
[1674203556234,3.16789779,20920.0,20919.0,0.01873588]
[1674203556513,3.05379779,20920.0,20919.0,0.01873588]
[1674203556785,3.06180615,20920.0,20919.0,0.01873588]
[1674203557320,2.82599779,20920.0,20919.0,0.01873588]
[1674203558135,3.1914633,20920.0,20919.0,0.01873588]
[1674203558391,3.12599779,20920.0,20919.0,0.01873588]
[1674203559209,3.18280784,20920.0,20919.0,0.01873588]
[1674203559723,3.12604478,20920.0,20919.0,0.01873588]
[1674203559965,3.29647493,20920.0,20919.0,0.01873588]
[1674203561557,3.12604478,20920.0,20919.0,0.01873588]
[1674203563923,3.45538704,20920.0,20919.0,0.01873588]
[1674203564173,3.41003484,20920.0,20919.0,0.01873588]
[1674203564891,3.29653146,20920.0,20919.0,0.01873588]
[1674203565135,3.18280784,20920.0,20919.0,0.01873588]
[1674203565377,3.62865273,20920.0,20919.0,0.01873588]
[1674203565890,5.15658686,20920.0,20919.0,0.00327377]
[1674203566116,4.94750163,20920.0,20919.0,0.00327377]
[1674203566348,4.60647461,20920.0,20919.0,0.00327377]
[1674203566600,4.92271524,20920.0,20919.0,0.00327377]
[1674203567367,5.54994226,20920.0,20919.0,0.00327377]
[1674203567605,5.23370163,20920.0,20919.0,0.0003931]
[1674203568091,4.89267461,20920.0,20919.0,0.0003931]
[1674203568358,5.20963378,20920.0,20919.0,1e-07]
[1674203568610,0.15,20919.0,20918.0,0.02406637]
[1674203568850,4.46253816,20919.0,20918.0,0.02406637]
[1674203569584,4.86183816,20919.0,20918.0,3.7e-07]
[1674203569839,4.86183816,20919.0,20916.0,0.02588155]
[1674203569840,5.20286518,20919.0,20916.0,0.02588155]
[1674203570072,0.77510448,20917.0,20916.0,0.02588155]
[1674203570327,3.66021092,20917.0,20916.0,0.02588155]
[1674203570574,3.66871092,20917.0,20916.0,0.02588155]
[1674203571070,4.27086699,20917.0,20916.0,5.5e-07]
[1674203571323,0.47812,20916.0,20913.0,0.02656422]
[1674203571603,0.70380169,20914.0,20913.0,0.02656422]
[1674203571843,2.56409157,20914.0,20913.0,0.02656422]
[1674203572088,3.34407549,20914.0,20913.0,0.02656422]
[1674203572597,3.62415469,20914.0,20913.0,0.02656422]
[1674203572840,0.15,20913.0,20910.0,0.02007488]
[1674203573090,2.23491569,20912.0,20910.0,0.02007488]
[1674203573342,1.08646669,20911.0,20910.0,0.02007488]
[1674203573591,1.09496669,20911.0,20910.0,0.02007488]
[1674203575136,1.43110925,20911.0,20910.0,0.02007488]
[1674203575394,1.52102162,20911.0,20910.0,0.02007488]
[1674203575683,1.21169662,20911.0,20910.0,0.13427488]
[1674203577133,0.48570169,20911.0,20910.0,0.13427488]
[1674203577401,1.434642,20912.0,20910.0,0.79102183]
[1674203577402,1.3173997,20912.0,20910.0,0.79102183]
[1674203577657,0.478254,20912.0,20911.0,0.664827]
[1674203577914,0.478254,20912.0,20911.0,1.14549525]
[1674203577915,6e-05,20912.0,20911.0,1.14549525]
[1674203578421,0.478126,20915.0,20911.0,1.14549525]
[1674203578652,0.41177333,20914.0,20912.0,0.581104]
[1674203578902,0.41177333,20914.0,20913.0,0.556425]
[1674203579158,0.478148,20914.0,20913.0,0.556425]
[1674203580436,0.81328578,20914.0,20913.0,0.556425]
[1674203580766,0.81328578,20914.0,20913.0,0.2284]
[1674203581682,0.81328578,20914.0,20913.0,0.546156]
[1674203581939,0.478148,20914.0,20913.0,0.546156]
[1674203582179,0.478148,20914.0,20913.0,0.87939093]
[1674203582934,0.478148,20914.0,20913.0,0.99359093]
[1674203584932,0.78456493,20914.0,20913.0,0.660356]
[1674203585182,1.08456493,20914.0,20913.0,0.660356]
[1674203585670,0.78456493,20914.0,20913.0,0.660356]
[1674203588156,1.26271293,20914.0,20913.0,0.660356]
[1674203588408,0.78456493,20914.0,20913.0,0.660356]
[1674203588659,1.26271293,20914.0,20913.0,0.360356]
[1674203588902,1.26271293,20914.0,20913.0,0.473556]
[1674203588903,1.56271293,20914.0,20913.0,0.473556]
[1674203589393,1.26271293,20914.0,20913.0,0.473556]
[1674203590870,0.78456493,20914.0,20913.0,0.623556]
[1674203591354,0.478146,20915.0,20913.0,1.85929102]
[1674203591606,0.478146,20915.0,20914.0,1.488769]
[1674203593889,0.91178353,20916.0,20915.0,0.15]
[1674203594144,0.91178353,20916.0,20915.0,0.810565]
[1674203594632,1.21178353,20916.0,20915.0,0.660565]
[1674203594890,1.08540927,20916.0,20915.0,0.3426]
[1674203595404,1.56351127,20916.0,20915.0,0.0777]
[1674203595661,1.56351127,20916.0,20913.0,0.0771]
[1674203595662,0.31932025,20915.0,20913.0,0.0771]
[1674203595964,1.256296,20914.0,20913.0,0.0771]
[1674203596912,1.47831057,20914.0,20911.0,4.553603]
[1674203597156,1.47831057,20914.0,20911.0,4.475903]
[1674203597157,0.32911,20913.0,20911.0,4.475903]
[1674203597406,1.75004,20912.0,20911.0,4.475903]
[1674203597654,1.734582,20912.0,20911.0,4.475903]
[1674203598634,2.06343734,20912.0,20911.0,4.475903]
[1674203598919,2.38726434,20912.0,20911.0,4.475903]
[1674203599403,2.06343734,20912.0,20911.0,4.475903]
[1674203599656,1.743082,20912.0,20911.0,4.475903]
[1674203599902,2.4596034,20912.0,20911.0,4.475903]
[1674203600408,2.1391044,20912.0,20911.0,4.475903]
[1674203601397,2.4323844,20912.0,20911.0,4.475903]
[1674203601645,2.51356369,20912.0,20911.0,4.475903]
[1674203601893,2.84836086,20912.0,20911.0,4.475903]
[1674203602144,2.51356369,20912.0,20911.0,4.475903]
[1674203603233,2.8496026,20912.0,20911.0,4.475903]
[1674203603504,2.84974382,20912.0,20911.0,4.475903]
[1674203603776,2.51356369,20912.0,20911.0,4.475903]
[1674203604035,2.68405208,20912.0,20911.0,4.475903]
[1674203604282,2.79766091,20912.0,20911.0,4.475903]
[1674203604794,2.51356369,20912.0,20911.0,4.475903]
[1674203605054,2.91949749,20912.0,20911.0,4.475903]
[1674203605565,2.21356369,20912.0,20911.0,4.475903]
[1674203605818,2.25715769,20912.0,20911.0,4.475903]
[1674203606331,1.92028369,20912.0,20911.0,4.475903]
[1674203606865,2.88276852,20912.0,20911.0,4.475903]
[1674203607120,2.93964808,20912.0,20911.0,4.475903]
[1674203607400,3.44610299,20912.0,20911.0,4.475903]
[1674203608681,2.88268418,20912.0,20911.0,4.475903]
[1674203609159,0.7333093,20910.0,20909.0,0.02291963]
[1674203609409,3.27013199,20910.0,20909.0,0.02291963]
[1674203609948,3.74837199,20910.0,20909.0,0.02291963]
[1674203610189,3.44837199,20910.0,20909.0,0.02291963]
[1674203610686,3.44837199,20910.0,20909.0,0.22875963]
[1674203610687,2.1680293,20910.0,20909.0,0.22875963]
[1674203610949,1.6897893,20910.0,20909.0,0.22875963]
[1674203611264,1.6897893,20910.0,20909.0,0.56746263]
[1674203611505,0.7333093,20910.0,20909.0,0.95402061]
[1674203612007,0.7333093,20910.0,20909.0,1.03092061]
[1674203613093,0.7333093,20910.0,20909.0,0.95402061]
[1674203613347,1.14430395,20910.0,20909.0,0.43902263]
[1674203614669,0.7333093,20910.0,20909.0,0.43902263]
[1674203616023,0.7333093,20910.0,20909.0,0.89555632]
[1674203617102,0.7333093,20910.0,20909.0,1.12245632]
[1674203618429,0.7333093,20910.0,20909.0,1.12024826]
[1674203620803,0.7333093,20910.0,20909.0,1.59839153]
[1674203621057,0.7333093,20910.0,20909.0,2.07665353]
[1674203621307,0.7333093,20910.0,20909.0,2.45920473]
[1674203622175,0.7333093,20910.0,20909.0,2.07665353]
[1674203622679,0.7333093,20910.0,20909.0,2.19102935]
[1674203623500,0.7333093,20910.0,20909.0,2.07665353]
[1674203624815,0.7333093,20910.0,20909.0,2.07680644]
[1674203625336,0.7333093,20910.0,20909.0,3.39276177]
[1674203625601,0.3041093,20910.0,20909.0,5.06583888]
[1674203626169,0.23,20912.0,20911.0,4.1717937]
[1674203626430,0.23,20912.0,20911.0,6.76144373]
[1674203626936,0.23,20912.0,20911.0,6.93779812]
[1674203627250,0.23,20912.0,20911.0,7.29480207]
[1674203627537,0.23,20912.0,20911.0,8.42233767]
[1674203627789,0.23,20912.0,20911.0,7.52333075]
[1674203628042,0.23,20912.0,20911.0,6.99480207]
[1674203628299,0.23,20912.0,20911.0,6.58999752]
[1674203628592,0.23,20912.0,20911.0,6.47578288]
[1674203628877,0.23,20912.0,20911.0,6.76139476]
[1674203629136,0.35964409,20917.0,20912.0,0.23041097]
[1674203629387,0.63037157,20919.0,20916.0,0.0776]
[1674203629642,0.42020072,20918.0,20917.0,0.324173]
[1674203629911,0.41765718,20918.0,20917.0,0.324173]
[1674203632135,0.41765718,20918.0,20913.0,1.15539026]
[1674203632136,0.71765718,20918.0,20913.0,1.15539026]
[1674203632392,0.19432097,20917.0,20914.0,0.33856534]
[1674203632749,0.64432097,20917.0,20915.0,0.316494]
[1674203633007,0.778081,20917.0,20916.0,0.31751]
[1674203634058,1.11732516,20917.0,20916.0,0.31751]
[1674203634305,0.91732516,20917.0,20913.0,0.88621957]
[1674203634570,1.01164613,20917.0,20914.0,0.72628266]
[1674203634785,0.81732516,20917.0,20915.0,0.321496]
[1674203635049,0.81732516,20917.0,20916.0,0.319304]
[1674203635311,0.478081,20917.0,20916.0,0.319304]
[1674203635562,0.82568443,20917.0,20916.0,0.319304]
[1674203635812,1.12568443,20917.0,20914.0,0.40263166]
[1674203636060,0.82568443,20917.0,20914.0,0.40263166]
[1674203636318,0.82568443,20917.0,20915.0,0.323892]
[1674203636589,0.82568443,20917.0,20916.0,0.328984]
[1674203636827,1.12568443,20917.0,20916.0,0.328984]
[1674203637083,1.12568343,20917.0,20914.0,0.40263166]
[1674203637632,1.12568343,20917.0,20915.0,0.329622]
[1674203637858,1.60376343,20917.0,20916.0,0.306447]
[1674203638104,1.25616,20917.0,20912.0,0.08041097]
[1674203638360,0.49432097,20916.0,20912.0,0.08041097]
[1674203638609,1.15057797,20915.0,20912.0,0.08041097]
[1674203638955,1.15057797,20915.0,20913.0,0.330272]
[1674203639125,0.956257,20915.0,20913.0,0.330272]
[1674203639624,0.956257,20915.0,20914.0,0.326087]
[1674203640440,0.956257,20915.0,20914.0,0.326939]
[1674203640699,0.956257,20915.0,20914.0,0.33338]
[1674203640951,1.31757643,20915.0,20914.0,0.321867]
[1674203642497,1.31757643,20915.0,20912.0,0.57164571]
[1674203642802,1.31757643,20915.0,20913.0,0.324289]
[1674203643029,1.31757643,20915.0,20914.0,0.33074]
[1674203643543,1.31757643,20915.0,20912.0,0.57164571]
[1674203643807,0.478127,20915.0,20913.0,0.7049077]
[1674203644065,0.478106,20916.0,20914.0,0.92167308]
[1674203644066,0.95622,20916.0,20914.0,0.92167308]
[1674203644340,1.2783837,20916.0,20915.0,0.325658]
[1674203645135,0.8002697,20916.0,20915.0,0.325658]
[1674203645452,0.3221537,20916.0,20915.0,0.475658]
[1674203645671,0.84056255,20918.0,20915.0,0.475658]
[1674203645924,0.956128,20918.0,20916.0,0.331607]
[1674203646188,0.48037257,20919.0,20917.0,0.316895]
[1674203646451,0.84915586,20919.0,20918.0,0.313984]
[1674203647494,0.37111686,20919.0,20918.0,0.313984]
[1674203649079,0.00233357,20919.0,20918.0,0.313984]
[1674203649355,0.00233357,20919.0,20918.0,0.70729819]
[1674203650421,0.00233357,20919.0,20918.0,1.66341219]
[1674203650993,0.00224837,20919.0,20918.0,1.66341219]
[1674203652079,0.00224837,20919.0,20918.0,2.10187316]
[1674203653126,0.00224837,20919.0,20918.0,2.17957316]
[1674203653947,0.00224837,20919.0,20918.0,2.27374078]
[1674203654200,0.00224837,20919.0,20918.0,1.825855]
[1674203655112,0.00224837,20919.0,20918.0,2.21226206]
[1674203656589,0.00254105,20921.0,20918.0,2.21226206]
[1674203656590,0.00254105,20921.0,20919.0,0.15064821]
[1674203656877,0.00254105,20921.0,20920.0,2.23338806]
[1674203657363,0.00254105,20921.0,20920.0,2.31058806]
[1674203657865,0.00254105,20921.0,20920.0,1.924181]
[1674203658690,0.00254105,20921.0,20920.0,1.769281]
[1674203658961,0.00254105,20921.0,20920.0,2.18030059]
[1674203663220,0.00254105,20921.0,20920.0,1.769281]
[1674203663706,0.00254105,20921.0,20920.0,1.846681]
[1674203667484,0.00254105,20921.0,20920.0,2.27170486]
[1674203667959,0.00254105,20921.0,20920.0,1.846681]
[1674203670475,0.00254105,20921.0,20920.0,2.29654291]
[1674203671482,0.00254105,20921.0,20920.0,1.846681]
[1674203673424,0.00254105,20921.0,20920.0,1.96089637]
[1674203673713,0.00254105,20921.0,20920.0,2.26089637]
[1674203673963,0.00254105,20921.0,20920.0,3.34754325]
[1674203674238,0.00254082,20923.0,20921.0,0.65250307]
[1674203674476,0.00254082,20923.0,20922.0,4.97533253]
[1674203674726,0.00254082,20923.0,20922.0,5.2033514]
[1674203674969,0.00254082,20923.0,20922.0,4.04318053]
[1674203675210,0.00254082,20923.0,20922.0,3.633198]
[1674203675463,0.00254082,20923.0,20922.0,3.63307452]
[1674203676512,0.00276123,20924.0,20923.0,0.15073907]
[1674203676755,0.00276123,20924.0,20923.0,1.62868642]
[1674203676991,0.00276123,20924.0,20923.0,2.59599747]
[1674203677537,0.00276123,20924.0,20923.0,2.13068642]
[1674203678520,0.00276123,20924.0,20923.0,1.99847309]
[1674203678761,0.00276123,20924.0,20923.0,1.62868642]
[1674203679491,0.00276123,20924.0,20923.0,2.10662842]
[1674203680473,0.00276123,20924.0,20923.0,2.22061095]
[1674203680954,0.00276123,20924.0,20923.0,2.10662842]
[1674203681463,0.00276123,20924.0,20923.0,2.22061095]
[1674203682423,0.00276123,20924.0,20923.0,2.10662842]
[1674203683178,0.00276123,20924.0,20923.0,2.60611575]
[1674203683663,0.00276123,20924.0,20923.0,3.11282566]
[1674203684401,0.00276123,20924.0,20923.0,2.60785943]
[1674203684663,0.38120982,20930.0,20924.0,0.15]
[1674203684908,0.38120982,20930.0,20925.0,1.757661]
[1674203685150,0.38120982,20930.0,20926.0,0.78868335]
[1674203685383,0.41442041,20929.0,20927.0,1.29661617]
[1674203685631,1.37005341,20929.0,20928.0,0.325011]
[1674203685885,1.67005341,20929.0,20927.0,8.717e-05]
[1674203686136,1.67005341,20929.0,20925.0,0.81233105]
[1674203686388,0.60874138,20929.0,20926.0,1.33902557]
[1674203686628,0.60874138,20929.0,20926.0,0.8610644]
[1674203686629,0.41442041,20929.0,20926.0,0.8610644]
[1674203687859,0.41442041,20929.0,20926.0,0.477872]
[1674203688346,0.56442041,20929.0,20926.0,0.477872]
[1674203688590,0.41442041,20929.0,20926.0,0.477872]
[1674203688868,0.41442041,20929.0,20927.0,0.35647417]
[1674203689368,0.41442041,20929.0,20926.0,0.477859]
[1674203689607,0.89222641,20929.0,20926.0,0.477859]
[1674203690106,1.37003141,20929.0,20925.0,1.42249447]
[1674203690341,0.3,20928.0,20925.0,1.42249447]
[1674203690576,0.68332134,20928.0,20925.0,1.42249447]
[1674203690810,0.38332134,20928.0,20925.0,1.42249447]
[1674203691090,0.38332134,20928.0,20926.0,0.71328626]
[1674203691344,0.38332134,20928.0,20927.0,0.332624]
[1674203691583,0.42289353,20929.0,20927.0,8.715e-05]
[1674203691829,0.42289353,20929.0,20928.0,0.331639]
[1674203692073,0.90069853,20929.0,20927.0,8.715e-05]
[1674203692311,0.15,20928.0,20927.0,0.477851]
[1674203692617,0.42289353,20929.0,20927.0,8.715e-05]
[1674203692840,0.42289353,20929.0,20926.0,1.34374626]
[1674203693103,0.42289353,20929.0,20927.0,0.32897]
[1674203693347,0.42289353,20929.0,20926.0,1.34374426]
[1674203693591,0.42289353,20929.0,20927.0,8.715e-05]
[1674203694086,0.90069953,20929.0,20927.0,8.715e-05]
[1674203694816,0.90069953,20929.0,20926.0,1.34374426]
[1674203695060,0.90069953,20929.0,20927.0,0.72066513]
[1674203695306,0.90069953,20929.0,20928.0,0.330665]
[1674203695561,0.90069953,20929.0,20927.0,0.40631613]
[1674203696826,0.90069953,20929.0,20928.0,0.327707]
[1674203697077,0.90069953,20929.0,20927.0,0.40631613]
[1674203697324,1.37850453,20929.0,20927.0,0.40631613]
[1674203698081,0.90069953,20929.0,20927.0,0.40631613]
[1674203698317,0.42289353,20929.0,20927.0,0.40631613]
[1674203698557,0.00413887,20930.0,20928.0,0.00174326]
[1674203698809,0.37682665,20930.0,20929.0,0.334734]
[1674203699830,0.48192187,20930.0,20929.0,0.334734]
[1674203700084,0.8166541,20930.0,20929.0,0.334734]
[1674203700814,0.3388711,20930.0,20929.0,0.334734]
[1674203706274,0.00413887,20930.0,20929.0,0.484734]
[1674203706774,0.00413887,20930.0,20929.0,0.334734]
[1674203707801,0.48192187,20930.0,20929.0,0.334734]
[1674203708304,0.00413887,20930.0,20929.0,0.334734]
[1674203708539,0.00413887,20930.0,20929.0,0.484734]
[1674203708777,0.00413887,20930.0,20929.0,0.334734]
[1674203710519,0.32593471,20930.0,20929.0,0.334734]
[1674203710778,1.58150071,20930.0,20927.0,0.477832]
[1674203711028,1.77582168,20930.0,20927.0,0.477832]
[1674203711281,1.58150071,20930.0,20926.0,1.42039153]
[1674203711534,1.77582168,20930.0,20926.0,1.42039153]
[1674203711861,1.77582168,20930.0,20927.0,0.322427]
[1674203712078,0.35241526,20929.0,20928.0,0.337417]
[1674203712325,1.13022026,20929.0,20926.0,0.94252353]
[1674203712559,0.83022026,20929.0,20927.0,0.328138]
[1674203712800,0.83022026,20929.0,20926.0,0.94252353]
[1674203713061,0.83022026,20929.0,20926.0,1.20650606]
[1674203713307,0.35241526,20929.0,20927.0,0.333412]
[1674203713562,0.35241526,20929.0,20928.0,0.304175]
[1674203714048,0.35241526,20929.0,20928.0,0.30591826]
[1674203714548,0.35241526,20929.0,20927.0,0.40961749]
[1674203714806,0.35241526,20929.0,20926.0,0.629515]
[1674203715057,0.35241526,20929.0,20927.0,0.330896]
[1674203715358,0.35241526,20929.0,20926.0,1.585247]
[1674203715627,0.35241526,20929.0,20927.0,0.317823]
[1674203715858,0.35241526,20929.0,20928.0,0.325466]
[1674203716101,0.35241526,20929.0,20926.0,1.32126447]
[1674203716102,0.65241526,20929.0,20926.0,1.32126447]
[1674203716356,0.35241526,20929.0,20926.0,1.32126447]
[1674203716611,0.35241526,20929.0,20927.0,0.31397]
[1674203716904,0.35241526,20929.0,20928.0,0.320548]
[1674203717163,0.65241526,20929.0,20926.0,1.32126447]
[1674203717402,0.37117983,20928.0,20926.0,1.32126447]
[1674203717675,0.37117983,20928.0,20927.0,0.33688022]
[1674203719207,0.37117983,20928.0,20925.0,0.477882]
[1674203719465,0.37117983,20928.0,20926.0,0.319392]
[1674203719704,0.37117983,20928.0,20927.0,0.352102]
[1674203720227,0.84900783,20928.0,20927.0,0.352102]
[1674203720489,0.84900783,20928.0,20925.0,1.37122941]
[1674203721249,0.37117983,20928.0,20925.0,1.37122941]
[1674203721573,0.37117983,20928.0,20926.0,0.324032]
[1674203721765,0.37117983,20928.0,20927.0,0.323906]
[1674203722007,0.84900883,20928.0,20925.0,0.89333641]
[1674203722263,0.84900883,20928.0,20926.0,0.46852192]
[1674203722507,0.84900883,20928.0,20927.0,0.324587]
[1674203722756,0.84900883,20928.0,20926.0,0.46852192]
[1674203722994,0.37117983,20928.0,20927.0,0.305395]
[1674203723247,0.554724,20929.0,20927.0,0.305395]
[1674203723507,0.93969676,20929.0,20928.0,0.33587]
[1674203724001,0.93969676,20929.0,20927.0,0.15]
[1674203724250,0.93969676,20929.0,20928.0,0.322898]
[1674203724497,1.41750176,20929.0,20928.0,0.322898]
[1674203724745,1.41750176,20929.0,20926.0,0.46852192]
[1674203725737,1.41750176,20929.0,20927.0,0.313167]
[1674203725995,1.41750176,20929.0,20926.0,0.46852192]
[1674203726250,1.41750176,20929.0,20927.0,0.333124]
[1674203726501,1.41750176,20929.0,20926.0,0.61852192]
[1674203726749,1.41750176,20929.0,20927.0,8.715e-05]
[1674203727019,1.41750176,20929.0,20926.0,0.61852192]
[1674203727257,1.41750176,20929.0,20927.0,0.315406]
[1674203727515,1.41750176,20929.0,20926.0,0.61852192]
[1674203727748,1.41750176,20929.0,20927.0,0.319271]
[1674203728015,1.41750176,20929.0,20928.0,0.300469]
[1674203728307,0.48193887,20930.0,20928.0,0.300469]
[1674203728541,0.8133598,20930.0,20929.0,0.318869]
[1674203730895,0.00413887,20930.0,20929.0,0.318869]
[1674203731106,0.00413887,20930.0,20929.0,0.84912302]
[1674203731590,0.00413887,20930.0,20929.0,1.32692802]
[1674203731839,0.00413887,20930.0,20929.0,1.80473302]
[1674203732331,0.00413887,20930.0,20929.0,2.30512261]
[1674203732575,0.00413887,20930.0,20929.0,3.94308456]
[1674203732824,0.02761938,20930.0,20929.0,2.65189721]
[1674203733069,0.02761938,20930.0,20929.0,2.94002429]
[1674203734069,0.02761938,20930.0,20929.0,2.48088305]
[1674203734331,0.00512778,20933.0,20929.0,4.01599333]
[1674203734591,0.00512778,20933.0,20932.0,0.0776]
[1674203734863,0.00512778,20933.0,20932.0,2.19959948]
[1674203735110,0.00512778,20933.0,20932.0,2.31388881]
[1674203736833,0.00512778,20933.0,20932.0,4.22096493]
[1674203737086,0.00512778,20933.0,20932.0,2.81577275]
[1674203737940,0.00512778,20933.0,20932.0,2.348417]
[1674203738110,0.00512778,20933.0,20932.0,2.72428453]
[1674203744631,0.00512778,20933.0,20932.0,2.72009847]
[1674203744878,0.00512778,20933.0,20932.0,2.21809847]
[1674203745097,0.00512778,20933.0,20932.0,1.66276147]
[1674203745342,0.00512778,20933.0,20932.0,1.66267434]
[1674203746869,0.00512778,20933.0,20932.0,1.44108]
[1674203747634,0.00512778,20933.0,20932.0,1.88410748]
[1674203748419,0.00512778,20933.0,20932.0,1.82748706]
[1674203748654,0.00512778,20933.0,20932.0,1.44108]
[1674203748905,0.00512778,20933.0,20932.0,1.89002887]